Cogmind - Beta 14 @@@ ROGUE MODE // 2024.11.25 @ 12:31:49 Player: Komeiji O. Result: Destroyed by P-70 Sage with Tesla Rifle Performance ------------- Evolutions (4) 2000 Regions Visited (13) 2600 Robots Destroyed (179) 895 Value Destroyed (5199) 5199 Prototype IDs (28) 560 Alien Tech Used (0) 0 Bonus (1275) 1275 TOTAL SCORE: 12529 Bonus ------- High Alert Combat Kills 368 Follower Combat Kills 33 Entered Garrisons 200 Used RIF Installer 500 Met Data Miner 300 Friendly Fire -126 Cogmind --------- Core Integrity 0/850 Matter 300/300 Energy 98/100 System Corruption 2% Temperature Cool (0) Movement Core (50) Location -5/Proximity Caves Parts ------- > --- POWER (1) -------- (None) > --- PROPULSION (5) --- (None) > --- UTILITY (6) ------ Enhanced Optical Array Hacking Suite Improved Hacking Suite Improved Hacking Suite Improved Corruption Screen > --- WEAPON (3) ------- Heavy Pick > --- INVENTORY (5) ---- Improved Reaction Control System Makeshift Cloaking Device Hacking Suite Relay Coupler [NC] (19) Trap Extractor (1/4 Proton Bomb) Peak State ------------ > --- POWER ------------ Makeshift Power Source > --- PROPULSION ------- VTOL Module Cooled VTOL Module Makeshift Flight Unit > --- UTILITY ---------- Enhanced Optical Array Advanced Terrain Scanner Hacking Suite Improved Hacking Suite Improved Hacking Suite Improved Corruption Screen > --- WEAPON ----------- High-powered Shock Rifle Falx Heavy Pick > --- INVENTORY -------- Improved Reaction Control System Makeshift Cloaking Device Hacking Suite Relay Coupler [NC] Trap Extractor [Rating: 60] Favorites ----------- Power Light Nuclear Core Engine Light Angular Momentum Engine Power Core Light Nuclear Core Propulsion Light Treads Treads Light Treads Leg Improved Carbon-fiber Leg Wheel Armored Huge Wheel Hover Unit Aerolev Unit Flight Unit Improved VTOL Module Utility High-capacity Storage Unit Device Seismic Detector Storage High-capacity Storage Unit Processor Advanced Visual Processing Unit Hackware Improved Hacking Suite Protection Light Armor Plating Weapon Assault Rifle Energy Gun Heavy Particle Gun Energy Cannon Advanced Beam Cannon Ballistic Gun Assault Rifle Ballistic Cannon Magnetic Acceleration Cannon Launcher Grenade Launcher Special Weapon Enhanced Flamer Impact Weapon Mace Slashing Weapon Chainsword Piercing Weapon Heavy Pick Special Melee Weapon Datajack Build | -11 -10 -10 -9 -8 -8 -8 -8 -7 -6 -6 -6 -6 -5 ------- Run | Yrd Mat Min Mat Mat Gar Mat Sto Fac Fac Low Low Dat Pro Slots Evolved 8 | . . . 2 2 . . . 2 2 . . . . Power . | . . . . . . . . . . . . . . Propulsion 3 | . . . . 1 . . . 2 . . . . . Utility 4 | . . . 1 1 . . . . 2 . . . . Weapon 1 | . . . 1 . . . . . . . . . . Parts Attached 285 | 7 10 3 37 29 42 3 22 69 34 12 9 . 8 Power 28 | 1 1 1 3 6 4 . 2 5 2 1 1 . 1 Engine 15 | 1 . 1 1 5 1 . 2 2 . 1 . . 1 Core 13 | . 1 . 2 1 3 . . 3 2 . 1 . . Reactor . | . . . . . . . . . . . . . . Propulsion 72 | 2 . . 9 9 12 . 4 25 5 4 1 . 1 Treads 25 | 2 . . 5 6 . . 3 7 . 2 . . . Leg 13 | . . . . . 10 . 1 1 . 1 . . . Wheel 16 | . . . 3 2 1 . . 10 . . . . . Hover 1 | . . . . 1 . . . . . . . . . Flight 17 | . . . 1 . 1 . . 7 5 1 1 . 1 Utility 101 | 2 7 . 9 6 11 2 11 24 20 2 3 . 4 Device 69 | 1 5 . 6 3 8 2 11 16 11 1 3 . 2 Storage 7 | 1 2 . 1 . . . . 2 1 . . . . Processor 10 | . . . . 2 3 . . 2 2 . . . 1 Hackware 4 | . . . . . . . . . 4 . . . . Protection 11 | . . . 2 1 . . . 4 2 1 . . 1 Artifact . | . . . . . . . . . . . . . . Weapon 84 | 2 2 2 16 8 15 1 5 15 7 5 4 . 2 Energy Gun 14 | . . . 4 2 6 . . . . . 1 . 1 Energy Cannon 1 | . . . . 1 . . . . . . . . . Ballistic Gun 29 | 2 2 1 8 5 4 . 3 2 . 1 1 . . Ballistic Cannon 4 | . . . . . . . . . 2 2 . . . Launcher 12 | . . 1 4 . 2 1 . 1 1 2 . . . Special Weapon 1 | . . . . . . . . . . . . . 1 Impact Weapon 4 | . . . . . . . . 3 1 . . . . Slashing Weapon 15 | . . . . . 2 . 2 8 2 . 1 . . Piercing Weapon 1 | . . . . . . . . . . . 1 . . Special Melee Weapon 3 | . . . . . 1 . . 1 1 . . . . Unidentified Prototypes 12 | . . . 2 4 . . 1 5 . . . . . Corrupted Parts 1 | . . . . . . . . . . . 1 . . System Corruption 1 | . . . . . . . . . . . 1 . . Parts Lost 62 | . . . 2 8 19 3 2 10 7 4 . . 7 Power 8 | . . . . 1 2 . 1 1 1 1 . . 1 Propulsion 27 | . . . . 2 8 . . 8 3 1 . . 5 Utility 10 | . . . 2 3 2 . 1 . 1 . . . 1 Weapon 17 | . . . . 2 7 3 . 1 2 2 . . . Highest Loss Streak 8 | . . . 1 7 8 3 1 3 5 4 . . 4 To Critical Strikes . | . . . . . . . . . . . . . . Average Slot Usage (%) 92 | . 100 100 99 97 93 95 96 88 93 79 89 86 70 Engine 5 | . 6 3 9 7 3 9 9 5 . . . . 3 Core 2 | . 7 10 1 . 4 . . 1 5 . 1 6 . Treads 12 | . 28 28 12 19 5 . 24 11 2 2 . . . Leg 3 | . . . . . 15 27 2 . . 4 4 . . Wheel 6 | . . . 9 6 1 . . 13 8 . . . . Flight 4 | . . . . . . . . 1 17 17 24 26 14 Device 12 | . 14 14 12 15 9 9 16 13 11 . 6 6 4 Storage 8 | . 14 14 11 9 9 9 9 7 6 6 6 6 . Processor 7 | . . . . 3 16 18 10 7 9 7 6 6 11 Hackware 2 | . . . . . . . . . 8 20 20 20 20 Protection 2 | . . . 9 6 . . . . 2 3 . . . Energy Gun 2 | . . . 3 8 8 13 6 . . . . . 2 Ballistic Gun 11 | . 28 28 28 17 8 6 8 5 . 4 4 . . Impact Weapon 1 | . . . . . . . . 3 . . . . . Slashing Weapon 7 | . . . . . 7 . 8 13 15 7 6 6 5 Peak Build Rating 60 | 7 12 13 22 33 37 37 41 50 59 52 59 50 60 Average Rating 34 | 5 8 10 18 26 30 34 33 44 51 48 53 50 48 On Entrance 30 | . 7 10 13 19 31 37 30 41 46 39 50 50 50 Naked Turns . | . . . . . . . . . . . . . . Heaviest Build 78 | 14 30 34 69 63 61 61 60 77 78 24 19 18 25 Greatest Support 108 | 40 40 40 40 62 62 46 66 108 52 22 20 20 20 Greatest Overweight (x) 6 | . . . 4 6 5 1 2 2 1 1 . . 2 Average Overweight (x) . | . . . 2 2 . 1 . . . . . . . Largest Inventory Capacity 20 | 8 15 15 20 20 20 20 20 20 20 8 8 8 8 Average Capacity 16 | 7 14 15 19 20 20 20 20 18 13 8 8 8 5 Most Carried 20 | 5 15 15 20 20 20 20 20 20 20 8 8 8 8 Average Carried 16 | 3 12 15 18 19 19 19 19 18 12 7 7 8 5 Final Capacity 20 | 8 15 15 20 20 20 20 20 20 8 8 8 8 5 Final Carried 20 | 5 15 15 20 20 20 19 20 20 8 8 8 8 5 Class Distribution -------------------- 19% | Mutant 19% | Gladiator 12% | Scavenger-Mutant 11% | Scavenger-Tank 10% | Hacker-Mutant 7% | Scavenger-Skirmisher 6% | Scavenger-Gunner 4% | Hacker-Sprinter 4% | Tank Dominant Class ---------------- Mutant | -10/Materials Mutant | -10/Mines Scavenger-Tank | -9/Materials Scavenger-Tank | -8/Materials Scavenger-Mutant | -8/Garrison Scavenger-Gunner | -8/Materials Scavenger-Mutant | -8/Storage Gladiator | -7/Factory Hacker-Sprinter | -6/Factory Hacker-Mutant | -6/Lower Caves Hacker-Mutant | -6/Lower Caves Hacker-Sprinter | -6/Data Miner Derelict-Mutant | -5/Proximity Caves Resources | -11 -10 -10 -9 -8 -8 -8 -8 -7 -6 -6 -6 -6 -5 ----------- Run | Yrd Mat Min Mat Mat Gar Mat Sto Fac Fac Low Low Dat Pro Matter Collected 5316 | 334 313 126 939 631 727 5 465 1062 329 200 110 . 75 Remotely . | . . . . . . . . . . . . . . Salvage Created 6872 | 125 323 105 1074 908 825 10 853 1486 692 269 202 . . Parts 406 | 8 17 9 84 60 54 4 44 87 28 11 . . . Haulers Intercepted 16 | . 1 . 3 3 . . 2 3 4 . . . . Recyclers Shooed 2 | . 1 . 1 . . . . . . . . . . Parts Field Recycled . | . . . . . . . . . . . . . . Retrieved Matter . | . . . . . . . . . . . . . . Parts Self-Destructed 12 | . . . . . . . . . . 11 . . 1 Prevented 3 | . . . . . . . . . . 3 . . . Kills | -11 -10 -10 -9 -8 -8 -8 -8 -7 -6 -6 -6 -6 -5 ------- Run | Yrd Mat Min Mat Mat Gar Mat Sto Fac Fac Low Low Dat Pro Combat Hostiles Destroyed 123 | . 8 5 27 14 28 1 10 20 4 6 . . . Melee 26 | . . . . 1 3 . 5 14 2 1 . . . Guns 63 | . 8 2 17 13 14 . 5 4 . . . . . Cannons 2 | . . . . . . . . . . 2 . . . AOE 32 | . . 3 10 . 11 1 . 2 2 3 . . . Classes Destroyed 17 | 2 3 . 5 2 3 . . 2 . . . . . Worker 7 | 1 . . 1 1 . . . 4 . . . . . Builder 2 | . . . . . . . . 1 1 . . . . Tunneler 6 | 5 . . . 1 . . . . . . . . . Hauler 16 | . 1 . 3 3 . . 2 3 4 . . . . Recycler 6 | . . . 1 . . . 3 2 . . . . . Operator 3 | . . . . 2 . . . . 1 . . . . Watcher 15 | . . . 4 2 . . 1 6 2 . . . . Swarmer 38 | . 3 3 10 2 8 2 1 3 2 4 . . . Cutter 3 | . . . . . 3 . . . . . . . . Grunt 52 | . 5 2 8 10 13 . 7 6 1 . . . . Brawler 1 | . . . . 1 . . . . . . . . . Duelist 3 | . . . 3 . . . . . . . . . . Protector 1 | . . . 1 . . . . . . . . . . Sentry 14 | . . . 5 1 . . 2 5 1 . . . . Specialist 2 | . . . . . 2 . . . . . . . . Hunter 7 | . . . . . 2 . . 3 . 2 . . . Programmer 3 | . . . . . . . . 3 . . . . . Packrat 2 | . . . . . . . . . . . 2 . . Best Kill Streak 13 | 3 3 3 9 6 13 1 6 7 3 3 . . . Combat Bots Only 13 | . 3 3 7 6 13 1 3 7 2 3 . . . Max Kills in Single Turn 3 | 2 1 3 2 1 2 2 2 2 2 2 1 . . Gunslinging 1 | . . . . . . . 1 . . . . . . Exploded 3 | . . 3 2 . 2 1 . 2 1 2 . . . Melee 1 | . . . . 1 1 . 1 1 1 1 . . . Uniques/NPCs Destroyed . | . . . . . . . . . . . . . . Combat | -11 -10 -10 -9 -8 -8 -8 -8 -7 -6 -6 -6 -6 -5 -------- Run | Yrd Mat Min Mat Mat Gar Mat Sto Fac Fac Low Low Dat Pro Hostile Shots Fired 1122 | . 44 18 122 97 188 17 70 308 127 54 18 . 59 Missed 353 | . 14 6 27 21 42 6 18 102 59 25 11 . 22 Damage Taken 10372 | . 350 127 1035 1069 2007 181 818 2738 744 530 96 . 677 Core 1959 | . 113 46 79 72 341 38 64 355 237 162 68 . 384 Absorbed by Shields 516 | . . . 244 68 204 . . . . . . . . Regen/Repaired (Parts) 44 | . . . 44 . . . . . . . . . . Core Remaining (%) 54 | 100 . 36 80 . . . 6 49 . . . . . Volleys Fired 305 | 16 28 7 67 54 51 1 21 28 10 13 5 . 4 Largest 3 | 2 2 2 3 3 3 3 3 3 1 1 1 . 1 Hottest 156 | 40 40 40 99 114 156 114 75 78 53 53 28 . 60 Shots Fired 688 | 32 57 13 177 146 94 3 53 81 10 13 5 . 4 Gun 639 | 32 57 12 166 146 81 2 53 80 . 1 5 . 4 Cannon 10 | . . . . . . . . . 6 4 . . . Launcher 39 | . . 1 11 . 13 1 . 1 4 8 . . . Special . | . . . . . . . . . . . . . . Kinetic 548 | 32 57 12 141 106 56 1 47 80 6 5 5 . . Thermal 97 | . . . 25 40 25 1 6 . . . . . . Explosive 26 | . . 1 11 . 13 1 . . . . . . . Electromagnetic 17 | . . . . . . . . 1 4 8 . . 4 Robot Hit Streak 16 | 7 10 7 14 13 16 . 10 16 9 4 1 . . Robot Miss Streak 6 | 2 2 2 4 4 3 . 2 3 . 1 2 . 6 Penetration Max . | . . . . . . . . . . . . . . Secondary Targets 9 | . . . 3 1 4 . 1 . . . . . . Max Gunslinging Chain 1 | . . . 1 1 1 . 1 . . . . . . Shots Hit Robots 542 | 23 38 8 100 94 89 . 49 94 31 12 4 . . Core Hits 291 | 9 16 7 66 43 47 2 20 55 14 10 2 . . Critical Kills 3 | . 2 . . 1 . . . . . . . . . Critical Parts Destroyed . | . . . . . . . . . . . . . . Critical Strikes 26 | . 2 . 2 6 3 . 3 3 5 2 . . . Burn 7 | . . . 2 5 . . . . . . . . . Destroy 3 | . 2 . . 1 . . . . . . . . . Blast 1 | . . . . . . . . . . 1 . . . Sever 15 | . . . . . 3 . 3 3 5 1 . . . Melee Attacks 247 | . . . . . 33 . 37 93 56 18 7 . 3 Impact 12 | . . . . . . . . 12 . . . . . Slashing 229 | . . . . . 28 . 37 81 56 18 7 . 2 Piercing 1 | . . . . . . . . . . . . . 1 Sneak Attacks 23 | . . . . . 5 . 2 8 7 . 1 . . Combat Hostiles . | . . . . . . . . . . . . . . Follow-up Attacks 25 | . . . . . 3 . 5 12 4 1 . . . Damage Inflicted 14416 | 243 441 232 2117 1468 2458 66 1208 3486 1737 729 231 . . Guns 5927 | 243 441 99 1421 1460 1006 . 515 722 . . 20 . . Cannons 87 | . . . . . . . . . . 87 . . . Explosions 2965 | . . 133 696 . 827 66 . 717 185 341 . . . Melee 5424 | . . . . . 622 . 691 2047 1552 301 211 . . Ramming 13 | . . . . 8 3 . 2 . . . . . . Kinetic 4751 | 243 441 99 1113 897 674 . 455 722 . 87 20 . . Thermal 1701 | . . . 308 563 332 . 60 352 . 86 . . . Explosive 2074 | . . 133 696 . 827 66 . 352 . . . . . Electromagnetic 453 | . . . . . . . . 13 185 255 . . . Impact 65 | . . . . . . . . 65 . . . . . Slashing 5359 | . . . . . 622 . 691 1982 1552 301 211 . . Piercing . | . . . . . . . . . . . . . . Highest Corruption 5 | . 1 1 4 4 4 4 5 3 . . 2 2 2 Average Corruption 3 | . 1 1 4 4 4 4 4 1 . . 1 2 2 Corruption Purged 3 | . . . . . . . . 3 . . . . . Corruption Blocked 2 | . . . . . . . . . . . . . 2 Effects 109 | . 6 4 21 18 34 1 13 9 . . 1 . 2 Message Errors 29 | . 2 2 7 7 6 . 3 . . . 1 . 1 Matter Fused 25 | . . . 7 3 7 . 3 4 . . . . 1 Heat Flow Errors 19 | . 1 1 3 2 8 1 3 . . . . . . Energy Discharges 8 | . . 1 3 . 2 . 1 1 . . . . . Parts Rejected 2 | . . . 1 . 1 . . . . . . . . Parts Fused 1 | . 1 . . . . . . . . . . . . Data Loss (minor) 12 | . 1 . . 3 6 . . 2 . . . . . Data Loss (major) 3 | . . . . 1 2 . . . . . . . . Misfires 2 | . 1 . . . . . 1 . . . . . . Alerts 4 | . . . . . 1 . 1 2 . . . . . Weapon Failures 4 | . . . . 2 1 . 1 . . . . . . Overload Shots . | . . . . . . . . . . . . . . Overflow Damage 560 | . . . 34 . 2 . 69 213 131 19 92 . . Projectiles 11 | . . . . . . . . . . 11 . . . Explosions 115 | . . . 34 . 2 . . 71 . 8 . . . Melee 434 | . . . . . . . 69 142 131 . 92 . . Knockbacks 1 | . . . . . . . . . . 1 . . . Impact . | . . . . . . . . . . . . . . Kinetic 1 | . . . . . . . . . . 1 . . . Secondary . | . . . . . . . . . . . . . . Self-Inflicted Damage 142 | . . . . . 72 32 . 17 . 21 . . . Shots 5 | . . . . . 2 1 . 1 . 1 . . . Rammed 2 | . . . . . 1 . 1 . . . . . . Targets Rammed 3 | . . . . 1 1 . 1 . . . . . . Kicked . | . . . . . . . . . . . . . . Crushed 1 | . . . . 1 . . . . . . . . . Highest Temperature 532 | . 235 175 440 152 532 84 228 28 24 . . . 33 Average Temperature 103 | . 79 71 103 25 151 47 98 5 9 . . . 19 Received Heat Transfer 2923 | . 174 24 299 540 647 9 396 468 183 30 . . 153 Effects 12 | . . . 1 . 11 . . . . . . . . Shutdowns 2 | . . . 1 . 1 . . . . . . . . Energy Bleed 2 | . . . . . 2 . . . . . . . . Interference 3 | . . . . . 3 . . . . . . . . Matter Decay 1 | . . . . . 1 . . . . . . . . Short Circuit 2 | . . . . . 2 . . . . . . . . Damage (minor) 2 | . . . . . 2 . . . . . . . . Siege Activations . | . . . . . . . . . . . . . . Robots Corrupted 1 | . . . . . . . . 1 . . . . . Combat Hostiles . | . . . . . . . . . . . . . . Parts Fried 1 | . . . . . . . . 1 . . . . . Impact Corruptions 1 | . . . . . . . . 1 . . . . . Robots Melted . | . . . . . . . . . . . . . . Combat Hostiles . | . . . . . . . . . . . . . . Parts Melted 6 | . . . 3 2 . . 1 . . . . . . Heat Transferred 3445 | . . . 764 1517 666 . 148 250 . 100 . . . Parts Sabotaged . | . . . . . . . . . . . . . . Parts Stolen . | . . . . . . . . . . . . . . Parts Stripped . | . . . . . . . . . . . . . . Power Chain Reactions 1 | . . . . . . . . . . 1 . . . Alert | -11 -10 -10 -9 -8 -8 -8 -8 -7 -6 -6 -6 -6 -5 ------- Run | Yrd Mat Min Mat Mat Gar Mat Sto Fac Fac Low Low Dat Pro Peak Influence 800 | 30 236 182 583 409 800 422 361 591 385 . . . . Initial 385 | . 19 91 70 245 209 385 176 163 277 . . . . Average 327 | 7 101 123 349 292 551 395 226 361 293 . . . . Maximum Alert Level 3 | . 1 . 2 2 3 2 1 2 1 . . . . Low Security (%) 21 | 100 74 100 18 9 . . 30 10 7 . . . . Level 1 49 | . 25 . 37 90 27 63 69 55 92 . . . . Level 2 25 | . . . 44 . 58 36 . 34 . . . . . Level 3 2 | . . . . . 14 . . . . . . . . Level 4 . | . . . . . . . . . . . . . . Level 5 . | . . . . . . . . . . . . . . High Security . | . . . . . . . . . . . . . . Max Security . | . . . . . . . . . . . . . . Squads Dispatched 20 | . 1 . 2 3 . . 1 8 5 . . . . Investigation 6 | . 1 . . . . . . 2 3 . . . . Extermination 4 | . . . . . . . . 4 . . . . . Reinforcement 5 | . . . 1 . . . . 2 2 . . . . Assault 1 | . . . 1 . . . . . . . . . . Garrison 4 | . . . . 3 . . 1 . . . . . . Intercept . | . . . . . . . . . . . . . . Searches Triggered . | . . . . . . . . . . . . . . Construction Impeded 2 | . . . 1 . . . . . 1 . . . . Haulers Reinforced . | . . . . . . . . . . . . . . Active Scanning Responses . | . . . . . . . . . . . . . . Cargo Convoy Interrupts . | . . . . . . . . . . . . . . Stealth | -11 -10 -10 -9 -8 -8 -8 -8 -7 -6 -6 -6 -6 -5 --------- Run | Yrd Mat Min Mat Mat Gar Mat Sto Fac Fac Low Low Dat Pro Distress Signals 10 | . . . 3 . . 1 3 2 1 . . . . Communications Jammed . | . . . . . . . . . . . . . . Distress Signals . | . . . . . . . . . . . . . . Times Spotted 231 | . 14 5 32 25 31 7 17 46 21 13 4 . 16 Peak Tracking Total 9 | . 4 3 8 4 9 6 6 5 9 4 2 . 9 Tactical Retreats 22 | . 3 . 1 . 1 . 3 4 1 3 3 . 3 Traps | -11 -10 -10 -9 -8 -8 -8 -8 -7 -6 -6 -6 -6 -5 ------- Run | Yrd Mat Min Mat Mat Gar Mat Sto Fac Fac Low Low Dat Pro Traps Triggered 11 | . 1 . . . 4 . 1 4 1 . . . . Indirectly . | . . . . . . . . . . . . . . Trap Hack Attempts 23 | . . . . . . . . 23 . . . . . Triggered . | . . . . . . . . . . . . . . Disarmed . | . . . . . . . . . . . . . . Reprogrammed 1 | . . . . . . . . 1 . . . . . Reused . | . . . . . . . . . . . . . . Traps Extracted 1 | . . . . . . . . 1 . . . . . Installed . | . . . . . . . . . . . . . . Triggered . | . . . . . . . . . . . . . . Most Traps Carried 1 | . . . . . . . . 1 1 1 1 1 1 Machines | -11 -10 -10 -9 -8 -8 -8 -8 -7 -6 -6 -6 -6 -5 ---------- Run | Yrd Mat Min Mat Mat Gar Mat Sto Fac Fac Low Low Dat Pro Machines Disabled 14 | . . . . 1 1 . 1 9 1 . 1 . . Max in Single Turn 6 | . . . . 1 1 . 1 6 1 . 1 . . Garrison Access 3 | . . . . . . . . 3 . . . . . Garrison Relay 1 | . . . . . 1 . . . . . . . . Machines Repaired . | . . . . . . . . . . . . . . Machines Dismantled . | . . . . . . . . . . . . . . Machines Sabotaged . | . . . . . . . . . . . . . . Overloaded Fab Kills . | . . . . . . . . . . . . . . Hacking | -11 -10 -10 -9 -8 -8 -8 -8 -7 -6 -6 -6 -6 -5 --------- Run | Yrd Mat Min Mat Mat Gar Mat Sto Fac Fac Low Low Dat Pro Machines Accessed 49 | . 7 . 4 3 2 . 3 15 11 . . 4 . Terminals 31 | . 6 . 2 2 2 . 3 7 9 . . . . Fabricators 3 | . . . . . . . . 2 1 . . . . Repair Stations 2 | . . . 1 . . . . . 1 . . . . Recycling Units 2 | . 1 . . . . . . 1 . . . . . Scanalyzers 3 | . . . 1 . . . . 2 . . . . . Garrison Access 4 | . . . . 1 . . . 3 . . . . . Total Hacks 131 | . 19 . 9 8 4 . 7 34 31 . . 19 . Successful 72 | . 11 . 5 4 1 . 1 13 18 . . 19 . Failed 59 | . 8 . 4 4 3 . 6 21 13 . . . . Catastrophic 7 | . . . . 1 . . 1 4 1 . . . . Database Lockouts . | . . . . . . . . . . . . . . Manual 54 | . 8 . 4 5 . . 2 14 21 . . . . Terminals 85 | . 17 . 5 6 4 . 7 20 26 . . . . Fabricators 10 | . . . . . . . . 6 4 . . . . Repair Stations 3 | . . . 2 . . . . . 1 . . . . Recycling Units 3 | . 2 . . . . . . 1 . . . . . Scanalyzers 6 | . . . 2 . . . . 4 . . . . . Garrison Access 5 | . . . . 2 . . . 3 . . . . . Terminal Hacks 38 | . 7 . 1 1 1 . 1 2 6 . . 19 . Record 3 | . . . . . . . . . . . . 3 . Part Schematic 9 | . . . . . . . . . . . . 9 . Robot Schematic 4 | . . . . . . . . . . . . 4 . Robot Analysis 1 | . 1 . . . . . . . . . . . . Prototype ID Bank 6 | . 1 . 1 . . . . 1 . . . 3 . Open Door 1 | . . . . . . . 1 . . . . . . Branch Access Points 1 | . 1 . . . . . . . . . . . . Terminal Index 1 | . . . . . . . . . 1 . . . . Locate Traps 6 | . 3 . . . . . . . 3 . . . . Hauler Manifests 3 | . . . . 1 . . . 1 1 . . . . Zone Layout 2 | . 1 . . . . . . . 1 . . . . Patrol Navigation 1 | . . . . . 1 . . . . . . . . Fabricator Hacks 5 | . . . . . . . . 2 3 . . . . Network Status 2 | . . . . . . . . 1 1 . . . . Load Schematic 1 | . . . . . . . . . 1 . . . . Build 2 | . . . . . . . . 1 1 . . . . Repair Station Hacks 2 | . . . 2 . . . . . . . . . . Scan Component 1 | . . . 1 . . . . . . . . . . Repair 1 | . . . 1 . . . . . . . . . . Recycling Unit Hacks . | . . . . . . . . . . . . . . Scanalyzer 4 | . . . 2 . . . . 2 . . . . . Insert Component 2 | . . . 1 . . . . 1 . . . . . Analyze 2 | . . . 1 . . . . 1 . . . . . Garrison Access Hacks 4 | . . . . 1 . . . 3 . . . . . Unlock Access 1 | . . . . 1 . . . . . . . . . Seal Access 3 | . . . . . . . . 3 . . . . . Unauthorized Hacks 19 | . 4 . . 2 . . . 4 9 . . . . Terminals 18 | . 4 . . 2 . . . 3 9 . . . . Assimilate 1 | . . . . . . . . 1 . . . . . Botnet 10 | . 2 . . 1 . . . 2 5 . . . . Skim 7 | . 2 . . 1 . . . . 4 . . . . Fabricators . | . . . . . . . . . . . . . . Repair Stations . | . . . . . . . . . . . . . . Recycling Units 1 | . . . . . . . . 1 . . . . . Mask 1 | . . . . . . . . 1 . . . . . Scanalyzers . | . . . . . . . . . . . . . . Garrison Access . | . . . . . . . . . . . . . . Data Cores Recovered 1 | . . . . 1 . . . . . . . . . Used . | . . . . . . . . . . . . . . Hacking Detections 37 | . 7 . 3 3 2 . 2 9 11 . . . . Full Trace Events 6 | . 1 . . . . . . 2 3 . . . . Feedback Events . | . . . . . . . . . . . . . . Feedback Blocked . | . . . . . . . . . . . . . . Robot Schematics Acquired 4 | . . . . . . . . . . . . 4 . Robots Built 1 | . . . . . . . . 1 . . . . . Authchips . | . . . . . . . . . . . . . . Time 116 | . . . . . . . . 116 . . . . . Total Robot Build Rating 3 | . . . . . . . . 3 . . . . . Part Schematics Acquired 11 | . . . 1 . . . . 1 . . . 9 . Parts Built 1 | . . . . . . . . . 1 . . . . Authchips . | . . . . . . . . . . . . . . Time 134 | . . . . . . . . . 134 . . . . Total Part Build Rating 4 | . . . . . . . . . 4 . . . . Parts Repaired 1 | . . . 1 . . . . . . . . . . Time 50 | . . . 50 . . . . . . . . . . Parts Recycled . | . . . . . . . . . . . . . . Recycled Matter . | . . . . . . . . . . . . . . Retrieved Matter . | . . . . . . . . . . . . . . Retrieved Components . | . . . . . . . . . . . . . . Parts Scanalyzed 2 | . . . 1 . . . . 1 . . . . . Part Schematics Acquired 2 | . . . 1 . . . . 1 . . . . . Parts Damaged . | . . . . . . . . . . . . . . Bothacking | -11 -10 -10 -9 -8 -8 -8 -8 -7 -6 -6 -6 -6 -5 ------------ Run | Yrd Mat Min Mat Mat Gar Mat Sto Fac Fac Low Low Dat Pro Used RIF Installer 1 | . . . . . 1 . . . . . . . . Robots Hacked . | . . . . . . . . . . . . . . Non-combat . | . . . . . . . . . . . . . . Combat . | . . . . . . . . . . . . . . Robot Hacks Applied . | . . . . . . . . . . . . . . Relay Couplers Released 7 | . . . . . 4 . . 3 . . . . . Machine Destruction 7 | . . . . . 4 . . 3 . . . . . Fabnet Peak Effective % . | . . . . . . . . . . . . . . Robots Rewired 2 | . . . . . 2 . . . . . . . . Allies Hacked . | . . . . . . . . . . . . . . Hacks Repelled . | . . . . . . . . . . . . . . Allies | -11 -10 -10 -9 -8 -8 -8 -8 -7 -6 -6 -6 -6 -5 -------- Run | Yrd Mat Min Mat Mat Gar Mat Sto Fac Fac Low Low Dat Pro Total Allies 7 | . . 2 . . 2 . . 2 . . . . 1 Largest Group 2 | . . 2 . . 1 1 . 2 . . . . 1 Highest-Rated Group 96 | . . 49 . . 5 5 . 49 . . . . 96 Highest-Rated Ally 96 | . . 31 . . 5 5 . 26 . . . . 96 Total Orders . | . . . . . . . . . . . . . . Ally Attacks 20 | . . 10 . . 6 . . . . . . . 4 Total Damage 331 | . . 100 . . 44 . . . . . . . 187 Kills 1 | . . . . . 1 . . . . . . . . Allies Corrupted . | . . . . . . . . . . . . . . Allies Melted . | . . . . . . . . . . . . . . Intel | -11 -10 -10 -9 -8 -8 -8 -8 -7 -6 -6 -6 -6 -5 ------- Run | Yrd Mat Min Mat Mat Gar Mat Sto Fac Fac Low Low Dat Pro Robot Analysis Total 1 | . 1 . . . . . . . . . . . . Derelict Logs Recovered 3 | . . . . . . . . . . 1 1 . 1 Drone Launches . | . . . . . . . . . . . . . . Drone Recoveries . | . . . . . . . . . . . . . . Exploration | -11 -10 -10 -9 -8 -8 -8 -8 -7 -6 -6 -6 -6 -5 ------------- Run | Yrd Mat Min Mat Mat Gar Mat Sto Fac Fac Low Low Dat Pro Turns Passed 10074 | 285 765 278 1011 886 1396 38 663 2920 623 542 469 22 176 Spaces Moved 6764 | 144 386 158 431 356 577 17 257 2106 858 407 641 82 344 Core 56 | 4 . . . . . . . . . . . . 52 Treads 1694 | 140 386 158 79 181 147 . 224 334 . 45 . . . Legs 1008 | . . . . . 427 17 33 . . 278 253 . . Wheels 2376 | . . . 352 175 3 . . 1631 215 . . . . Hover . | . . . . . . . . . . . . . . Flight 1630 | . . . . . . . . 141 643 84 388 82 292 Fastest Speed 23 | 50 160 160 145 145 155 190 145 23 25 32 27 27 27 Average Speed 114 | 156 160 160 157 179 192 190 151 111 48 110 65 27 40 Slowest Speed 470 | 160 160 160 400 240 470 190 305 150 108 225 120 27 176 Overloaded Moves 14 | . . . . . . . . . 5 . . . 9 Propulsion Burnouts . | . . . . . . . . . . . . . . Robots Hopped 3 | . . . . . . . . . . . 1 . 2 Cave-ins Triggered . | . . . . . . . . . . . . . . Exploration Rate (%) 44 | 8 62 36 42 28 56 6 41 55 27 50 81 75 51 Regions Visited 13 Branch Regions 6 Pre-discovered Areas 1 | . . . . . . . . . . . . 1 . Known Exits Taken 3 | . 1 . . 1 . . . . . 1 . . . Unknown Exits Taken 9 | 1 . 1 1 . . 1 1 1 1 . 1 1 . Scrap Searched 12 | . . . . . . . . . . 3 4 . 5 Spaces Dug 43 | . . . . . . . . 9 18 11 3 . 2 Terrain Destroyed 238 | . . 8 79 . 23 9 . 82 18 14 3 . 2 Melee 37 | . . . . . . . . 9 12 11 3 . 2 Projectile 6 | . . . . . . . . . 6 . . . . AOE 195 | . . 8 79 . 23 9 . 73 . 3 . . . Terrain Rammed . | . . . . . . . . . . . . . . Walls Destroyed . | . . . . . . . . . . . . . . Machines Disabled . | . . . . . . . . . . . . . . Actions | -11 -10 -10 -9 -8 -8 -8 -8 -7 -6 -6 -6 -6 -5 --------- Run | Yrd Mat Min Mat Mat Gar Mat Sto Fac Fac Low Low Dat Pro Total 8267 | 171 480 171 636 491 734 20 460 2550 977 458 669 81 369 Wait 394 | . 37 1 45 17 14 . 107 160 3 . 4 . 6 Move 6746 | 143 385 157 430 356 576 16 256 2105 857 406 638 81 340 Hop 3 | . . . . . . . . . . . 1 . 2 Pick Up 131 | 5 12 1 27 13 8 . 9 43 9 4 . . . Fast Attach 91 | 7 1 . 4 11 16 . 4 27 5 6 3 . 7 Attach 57 | . 1 . 6 7 11 1 5 13 9 3 1 . . Detach 18 | . 2 . . . 5 . 1 4 2 3 1 . . Swap 138 | . 8 3 27 11 15 2 13 30 20 3 5 . 1 Drop 159 | . 6 2 30 21 4 . 12 55 15 3 4 . 7 Fire 305 | 16 28 7 67 54 51 1 21 28 10 13 5 . 4 Melee 196 | . . . . . 30 . 31 62 47 17 7 . 2 Ram . | . . . . . . . . . . . . . . Kick . | . . . . . . . . . . . . . . Crush 3 | . . . . 1 1 . 1 . . . . . . Escape Stasis 2 | . . . . . 2 . . . . . . . . Rewire 1 | . . . . . 1 . . . . . . . . Trap 23 | . . . . . . . . 23 . . . . . Miscellaneous . | . . . . . . . . . . . . . . Route ------- -11/Scrapyard -10/Materials (discovered 2 exits: *Mat / *Min) -10/Mines (discovered 2 exits: *Mat x2) -9/Materials -8/Materials (discovered 2 exits: *Fac / Gar) -8/Garrison (discovered 3 exits: [*Mat x3]) -8/Materials -8/Storage -7/Factory (discovered 2 exits: *Fac x2) -6/Factory -6/Lower Caves -6/Lower Caves -6/Data Miner -5/Proximity Caves History --------- Turn | Location | Event 2 | -11/Scrapyard | Discovered new exit (range 16) 286 | -11/Scrapyard | Entered Materials 331 | -10/Materials | Build established: Mutant 510 | -10/Materials | Identified exit to Mines 637 | -10/Materials | Discovered new exit (range 11) 1051 | -10/Materials | Entered Mines 1075 | -10/Mines | Discovered new exit (range 4) 1082 | -10/Mines | Received a Rocket Launcher from a helpful Derelict 1179 | -10/Mines | Core integrity fell below 50% 1185 | -10/Mines | Discovered new exit (range 5) 1329 | -10/Mines | Entered Materials 1329 | -9/Materials | Evolved 2 slots: Utility x1, Weapon x1 1469 | -9/Materials | Destroyed 7 combat bots 1731 | -9/Materials | Build established: Tank 1845 | -9/Materials | Discovered new exit (range 15) 2049 | -9/Materials | Repaired Lgt. Angular Momentum Engine? 2129 | -9/Materials | First assault squad dispatched 2264 | -9/Materials | Build established: Scavenger-Tank 2340 | -9/Materials | Entered another Materials area 2340 | -8/Materials | Evolved 2 slots: Propulsion x1, Utility x1 2601 | -8/Materials | Lost 7 parts (1p2n2u2w) 2891 | -8/Materials | Discovered new exit (range 8) 3016 | -8/Materials | Garrison activated, responded to threat 3226 | -8/Materials | Identified exit to Garrison 3226 | -8/Materials | Entered Garrison 3242 | -8/Garrison | Triggered checkpoint 3298 | -8/Garrison | Build established: Scavenger-Gunner 3376 | -8/Garrison | Triggered checkpoint 3538 | -8/Garrison | Triggered checkpoint 3545 | -8/Garrison | Triggered checkpoint 3654 | -8/Garrison | Destroyed 13 combat bots 3660 | -8/Garrison | Lost 8 parts (1p2n5w) 3742 | -8/Garrison | Core integrity fell below 50% 3875 | -8/Garrison | Discovered new exit (range 10) 3928 | -8/Garrison | Triggered checkpoint 3998 | -8/Garrison | Lost 4 parts (2n1u1w) 4055 | -8/Garrison | Lost 4 parts (1p2n1u) 4057 | -8/Garrison | Build established: Scavenger-Mutant 4136 | -8/Garrison | Triggered checkpoint 4200 | -8/Garrison | Triggered checkpoint 4374 | -8/Garrison | Installed Relay Interface Framework 4387 | -8/Garrison | Discovered new exit (range 13) 4396 | -8/Garrison | Triggered checkpoint 4524 | -8/Garrison | Discovered new exit (range 5) 4622 | -8/Garrison | Entered Materials 4622 | -8/Materials | Accompanied by 1 ally 4622 | -8/Materials | Discovered new exit (range 7) 4651 | -8/Materials | Core integrity fell below 20% 4660 | -8/Materials | Entered Storage 4690 | -8/Storage | Lost 3 parts (3w) 5270 | -8/Storage | Discovered new exit (range 20) 5279 | -8/Storage | Garrison activated, responded to threat 5323 | -8/Storage | Entered Factory 5323 | -7/Factory | Evolved 2 slots: Propulsion x2 5402 | -7/Factory | Build established: Scavenger-Skirmisher 6012 | -7/Factory | Lost 3 parts (2n1w) 6150 | -7/Factory | Destroyed 7 combat bots 6286 | -7/Factory | Build established: Mutant 6699 | -7/Factory | Build established: Gladiator 7012 | -7/Factory | Discovered new exit (range 19) 8014 | -7/Factory | Discovered new exit (range 19) 8096 | -7/Factory | Fabricated M-28 Smith? 8171 | -7/Factory | Core integrity fell below 50% 8243 | -7/Factory | Entered another Factory area 8243 | -6/Factory | Evolved 2 slots: Utility x2 8711 | -6/Factory | Fabricated Cld. VTOL Module? 8788 | -6/Factory | Discovered new exit (range 9) 8790 | -6/Factory | Build established: Hacker-Sprinter 8866 | -6/Factory | Entered Lower Caves 8874 | -6/Lower Caves | Identified exit to Lower Caves 8895 | -6/Lower Caves | Lost 5 parts (1p3n1u) 9010 | -6/Lower Caves | Lost 4 parts (1p1n2w) 9103 | -6/Lower Caves | Build established: Hacker-Mutant 9124 | -6/Lower Caves | Spotted B-75 Beast 9408 | -6/Lower Caves | Entered another Lower Caves area 9495 | -6/Lower Caves | Learned 4 Factory zone layouts 9656 | -6/Lower Caves | Acquired the password to a Derelict Tinkerer's latest research 9742 | -6/Lower Caves | Caught by Unaware searching for contraband prototypes 9784 | -6/Lower Caves | Core integrity fell below 50% 9826 | -6/Lower Caves | Discovered new exit (range 19) 9877 | -6/Lower Caves | Entered Data Miner 9877 | -6/Data Miner | Discovered new exit (range 6) 9881 | -6/Data Miner | Met Data Miner 9889 | -6/Data Miner | Learned location of Section 7 (-3) 9889 | -6/Data Miner | Acquired the access code to Warlord's prototype stash 9893 | -6/Data Miner | Received God Mode back door access code from Data Miner 9899 | -6/Data Miner | Entered Proximity Caves 9907 | -5/Proximity Caves | Attracted the attention of an 0b10 checkpoint 9915 | -5/Proximity Caves | Escorted by Enhanced Grunt 9946 | -5/Proximity Caves | Learned Factory security intel 9948 | -5/Proximity Caves | Lost 3 parts (2n1u) 10006 | -5/Proximity Caves | Spotter reported a threat 10047 | -5/Proximity Caves | Core integrity fell below 20% 10075 | -5/Proximity Caves | Destroyed by P-70 Sage with Tesla Rifle Last Messages --------------- 09952_ Acquired 10 matter. 09954_ Searching scrap... 09954_ Found Recalibrator. 09954_ Found 46 Matter. 09988_ JS6EJOQ5QAAEAM2U5CUHALMSR 10004_ N-01 Spotter is scanning... 10006_ N-01 Spotter sends a signal. 10006_ ALERT: Unidentified potential threat approaching Complex 0b10. 10011_ Drone sends a signal. 10029_ VTOL Module destroyed. 10029_ Dropped Hpw. Shock Rifle. 10030_ Cld. VTOL Module destroyed. 10032_ System corrupted: Matter fused (-7). 10046_ Mak. Power Source destroyed. 10046_ Mak. Flight Unit destroyed. 10047_ Dropped Adv. Terrain Scanner. 10047_ Dropped Falx. 10048_ Critical hit (Burn: +37). 10067_ N-01 Spotter destroyed. 10071_ Imp. Corruption Screen intercepted 1% system corruption. Map ----- +----------------------------------------------------+ | ????# #??????## #?????????????????????????????? | | ????# #???????## ##?????????????????????????????? | | ????# #????##??####??????????????????????????????? | | ????# #??????????????#???????????????????????????? | | ????# #??????????????????????????????????????????? | | ????# #??????????????????????#???????????????????? | | ##### #??????????#?#???????? ????????????????????? | | # #????????????????????? ????????????????????? | | # #####????????????????????? ????????????????????? | | #????#???????????????????? ????????????????????? | | ###????????????????? ??????? ????????????????????? | | ?????#????????????????????? ????????????????????? | | ????????? ????????????????? ?????????????????????? | | ??????????????????????????? ?????????????????????? | | ??????????????????????????? ?????????????????????? | | ????#? ???????????????????? ?????????????????????? | | ??????????????????????????? ?????????????????????? | | ???????###??????????????? #?????????????????????? | | #?????## ##????#????????? ##????????????????????? | | ####?# ####??????????? #???? ##?????????????? | | ### #??????????? ##?? ##????????????? | | # ## #???###?????? ## #????????????? | | ?# ##### ##?#### #????????????? | | ## = ### #??????????????? | | # % p #???????????????? | | * ###### @ #???????????????????? | | ### #????## ##???????????????????? | | ??# #?????## ##????????????????????? | | ??# ### #??????#### #?????????????????????? | | ??# #?## #?????????## #????????????????????? | | ??# ??## #??????????# #???????????????????? | | ?# ???# #??????????# #???????????????????? | | "# ??# #??????????# ??????????????????? | | ### ??## #?????????# ?????????????????? | | ###??## ##????????? #???????????????? | | ##??????##?????????? #####???????????????? | | ####???????????????????? ####???????????????????? | | ????????????????????????###??????????????????????? | | ?????????????????????????????????????????????????? | | ?????????????????????????????????????????????????? | | ?????????????????????????????????????????????????? | | ?????????????????????????????????????????????????? | | ?????????????????????????????????????????????????? | | ?????????????????????????????????????????????????? | | ?????????????????????????????????????????????????? | | ?????????????????????????????????????????????????? | | ?????????????????????????????????????????????????? | | ?????????????????????????????????????????????????? | | ?????????????????????????????????????????????????? | | ?????????????????????????????????????????????????? | +----------------------------------------------------+ Best States ------------- Heat Dissipation 67 Energy Generation 18 Energy Capacity 310 Matter Stores 300 Matter Capacity 300 Sight Range 22 Robot Scan Range 15 Terrain Scan Range 20 Terrain Scan Density 10 ECM Strength 1 Additional Mass Support 6 Corruption Block 12 Armor Coverage 300 Evasion (%) 75 Targeting Accuracy 6 Target Analysis 5 Core Analysis 6 Recoil Reduction 5 Force Boost 20 Offensive Hacking 34 Trap Extractor Capacity 4 Item Schematics ----------------- Sml. Storage Unit | -9/Materials | Scanalyzed Cld. VTOL Module | -7/Factory | Scanalyzed Combat Drone Bay | -6/Data Miner | Free Lgt. Regenerative Plating | -6/Data Miner | Free Cld. Gravmag System | -6/Data Miner | Free Prc. Matter Filter | -6/Data Miner | Free Ionic Axe | -6/Data Miner | Free Imp. Linear Gravjet | -6/Data Miner | Free Imp. Armor Integrity Analyzer | -6/Data Miner | Free Phase Gun | -6/Data Miner | Free Impulse Thruster Array | -6/Data Miner | Free Robot Schematics ------------------ S-27 Virus | -6/Data Miner | Free L-41 Fighter | -6/Data Miner | Free E-15 Imp | -6/Data Miner | Free G-50 Soldier | -6/Data Miner | Free Fabricated ------------ M-28 Smith | x1 | -7/Factory | Preloaded Cld. VTOL Module | x1 | -6/Factory Alien Tech Used ----------------- None Achievements -------------- None Challenges ------------ None Game ------ Seed NavigationDynamicBroadsword Manual? 0 Play Time 02:34:08 Cumulative 180.3 hours Start 2024.11.25 @ 09:55:07 End 2024.11.25 @ 12:31:49 Sessions 1 Manual Loads 0 Difficulty Rogue Special Mode None Game No. 64 Rogue 63 Adventurer 1 Explorer 0 Win Type - Total 4 Types 4/0/0/0/0/0/0/0/0 Lore% 53 Gallery% 65 Achievement% 51 Wizard Run 0 Options --------- Layout 0 ASCII 1 Keyboard 1 Movement Vi Keybinds 0 Fullscreen 2 Font 36/Terminus++ Map View 76x50 Zoom Use 0% Tactical HUD 1 Map Filters NONE Filters NONE Steam 1 RUN: e041ff9f-e4e1-43ef-b514-e39b84720a5e